Workbook

Sheet GRS_Frequency Response
C1: DUT LLWG1702099829 2019-04-08 07-49-21-2 UTC+0800 | D1: DUT LLWG1702099830 2019-04-08 07-48-20-3 UTC+0800 | E1: DUT LLWG1702099843 2019-04-08 07-48-52-2 UTC+0800 | F1: DUT LLWG1702099829 2019-04-08 09-08-45-8 UTC+0800 | G1: DUT LLWG1702099830 2019-04-08 09-07-59-4 UTC+0800 | H1: DUT LLWG1702099843 2019-04-08 09-08-34-1 UTC+0800
A2: 70.00170898 | B2: =AVERAGE(C2:H2) -> 103.5920385 | C2: 103.4912033 | D2: 103.503746 | E2: 103.698616 | F2: 103.5852127 | G2: 103.4405823 | H2: 103.8328705
A3: 72.47832489 | B3: =AVERAGE(C3:H3) -> 103.535436 | C3: 103.4716721 | D3: 103.4774323 | E3: 103.6294174 | F3: 103.527565 | G3: 103.4264755 | H3: 103.6800537
A4: 75.04256439 | B4: 103.4664879 | C4: 103.4289169 | D4: 103.4455109 | E4: 103.5254211 | F4: 103.4450531 | G4: 103.404213 | H4: 103.5498123
A5: 77.69752502 | B5: 103.4238561 | C5: 103.4017868 | D5: 103.435524 | E5: 103.4519119 | F5: 103.3897705 | G5: 103.395607 | H5: 103.4685364
A6: 80.44641876 | B6: 103.4196103 | C6: 103.3960876 | D6: 103.4458771 | E6: 103.4158096 | F6: 103.3857422 | G6: 103.4232178 | H6: 103.4509277
A7: 83.29657745 | B7: 103.4425863 | C7: 103.4173965 | D7: 103.4876556 | E7: 103.4109879 | F7: 103.4061356 | G7: 103.4813156 | H7: 103.4520264
A8: 86.24356079 | B8: 103.4967016 | C8: 103.4702148 | D8: 103.5579071 | E8: 103.4339752 | F8: 103.4722366 | G8: 103.5681076 | H8: 103.4777679
A9: 89.29480743 | B9: 103.5540339 | C9: 103.5358353 | D9: 103.6367798 | E9: 103.4688034 | F9: 103.5295258 | G9: 103.6413803 | H9: 103.511879
A10: 92.45401001 | B10: 103.617513 | C10: 103.6049881 | D10: 103.7166595 | E10: 103.5131073 | F10: 103.6054001 | G10: 103.7095108 | H10: 103.5554123
A11: 95.72497559 | B11: 103.6608988 | C11: 103.6563873 | D11: 103.7715149 | E11: 103.548645 | F11: 103.6543732 | G11: 103.7574158 | H11: 103.5770569
A12: 99.11167145 | B12: 103.6480001 | C12: 103.6472549 | D12: 103.7677689 | E12: 103.5177765 | F12: 103.650856 | G12: 103.7594376 | H12: 103.5449066
A13: 102.6181793 | B13: 103.5872815 | C13: 103.5885162 | D13: 103.7123566 | E13: 103.4442902 | F13: 103.5933456 | G13: 103.7065048 | H13: 103.4786758
A14: 106.2487488 | B14: 103.4734192 | C14: 103.4763947 | D14: 103.6028442 | E14: 103.3157883 | F14: 103.4847031 | G14: 103.600769 | H14: 103.3600159
A15: 110.0130768 | B15: 103.3407745 | C15: 103.3439789 | D15: 103.472847 | E15: 103.1748276 | F15: 103.3527832 | G15: 103.4709015 | H15: 103.2293091
A16: 113.9052734 | B16: 103.224191 | C16: 103.2289734 | D16: 103.3581772 | E16: 103.0520401 | F16: 103.2351608 | G16: 103.3573532 | H16: 103.1134415
A17: 117.935173 | B17: 103.1499532 | C17: 103.1577759 | D17: 103.2830963 | E17: 102.9715805 | F17: 103.1616364 | G17: 103.2863007 | H17: 103.0393295
A18: 122.1076508 | B18: 103.0822131 | C18: 103.0990143 | D18: 103.223381 | E18: 102.8959808 | F18: 103.0877991 | G18: 103.2208481 | H18: 102.9662552
A19: 126.427742 | B19: 102.81066 | C19: 102.8365021 | D19: 102.9824829 | E19: 102.6109009 | F19: 102.7941513 | G19: 102.9510727 | H19: 102.6888504
A20: 130.9006805 | B20: 102.2593168 | C20: 102.2576523 | D20: 102.4442291 | E20: 102.0437241 | F20: 102.2537384 | G20: 102.4009476 | H20: 102.1556091
A21: 135.5318756 | B21: 101.6042226 | C21: 101.5817413 | D21: 101.7890625 | E21: 101.3865433 | F21: 101.6198807 | G21: 101.7399368 | H21: 101.5081711
A22: 140.3269043 | B22: 101.1152687 | C22: 101.0695343 | D22: 101.3075562 | E22: 100.8924408 | F22: 101.1717834 | G22: 101.240303 | H22: 101.0099945
A23: 145.2915955 | B23: 100.7168668 | C23: 100.6927872 | D23: 100.9249649 | E23: 100.4998932 | F23: 100.7902527 | G23: 100.8259125 | H23: 100.5673904
A24: 150.4391785 | B24: 100.4120687 | C24: 100.4086685 | D24: 100.545845 | E24: 100.1968079 | F24: 100.5075378 | G24: 100.5516052 | H24: 100.2619476
A25: 155.7616272 | B25: 100.2201843 | C25: 100.2352905 | D25: 100.2713776 | E25: 100.022171 | F25: 100.3232269 | G25: 100.3796082 | H25: 100.0894318
A26: 161.2723694 | B26: 100.2703603 | C26: 100.2919006 | D26: 100.2242355 | E26: 100.0899734 | F26: 100.384819 | G26: 100.4577637 | H26: 100.1734695
A27: 166.9781036 | B27: 100.4782829 | C27: 100.4995956 | D27: 100.4513474 | E27: 100.3040619 | F27: 100.5787506 | G27: 100.6522827 | H27: 100.3836594
A28: 172.8856812 | B28: 100.6152344 | C28: 100.6286469 | D28: 100.6248398 | E28: 100.4387512 | F28: 100.7125092 | G28: 100.7723846 | H28: 100.5142746
A29: 179.0022736 | B29: 100.6694031 | C29: 100.6732101 | D29: 100.701004 | E29: 100.4894257 | F29: 100.763588 | G29: 100.8162003 | H29: 100.5729904
A30: 185.3352661 | B30: 100.6650836 | C30: 100.6631851 | D30: 100.7031174 | E30: 100.4888153 | F30: 100.7499771 | G30: 100.8052444 | H30: 100.580162
A31: 191.8923187 | B31: 100.5632947 | C31: 100.5581284 | D31: 100.595665 | E31: 100.3905029 | F31: 100.6428146 | G31: 100.7026443 | H31: 100.4900131
A32: 198.6909332 | B32: 100.371137 | C32: 100.365448 | D32: 100.3861313 | E32: 100.202301 | F32: 100.458725 | G32: 100.5108414 | H32: 100.3033752
A33: 205.7205048 | B33: 100.1521619 | C33: 100.1427994 | D33: 100.1476822 | E33: 99.9799881 | F33: 100.2683029 | G33: 100.2983856 | H33: 100.0758133
A34: 212.9987793 | B34: 99.99818293 | C34: 99.98316956 | D34: 99.97502136 | E34: 99.8347702 | F34: 100.1266327 | G34: 100.1358337 | H34: 99.93367004
A35: 220.5345459 | B35: 99.87760671 | C35: 99.89774323 | D35: 99.86753845 | E35: 99.74217987 | F35: 99.98927307 | G35: 99.99190521 | H35: 99.77700043
A36: 228.3369293 | B36: 99.81663513 | C36: 99.85907745 | D36: 99.80597687 | E36: 99.69035339 | F36: 99.91151428 | G36: 99.90962982 | H36: 99.72325897
A37: 236.4153442 | B37: 99.87137222 | C37: 99.90296173 | D37: 99.8615036 | E37: 99.72203827 | F37: 99.97236633 | G37: 99.96668243 | H37: 99.80268097
A38: 244.7795868 | B38: 100.0539398 | C38: 100.0309067 | D38: 100.0297394 | E38: 99.85715485 | F38: 100.1787033 | G38: 100.1608963 | H38: 100.0662384
A39: 253.439743 | B39: 100.3434436 | C39: 100.2570801 | D39: 100.3308716 | E39: 100.1060715 | F39: 100.4758606 | G39: 100.4509811 | H39: 100.4397964
A40: 262.4062805 | B40: 100.6186867 | C40: 100.5110703 | D40: 100.6577988 | E40: 100.3730469 | F40: 100.7313919 | G40: 100.7019348 | H40: 100.7368774
A41: 271.7031555 | B41: 100.8580144 | C41: 100.7645264 | D41: 100.9328613 | E41: 100.6227951 | F41: 100.951767 | G41: 100.934227 | H41: 100.9419098
A42: 281.3158569 | B42: 101.0115255 | C42: 100.9644394 | D42: 101.0757141 | E42: 100.80056 | F42: 101.0927353 | G42: 101.1002731 | H42: 101.0354309
A43: 291.2686462 | B43: 101.0619799 | C43: 101.0679092 | D43: 101.0785828 | E43: 100.8814926 | F43: 101.1401596 | G43: 101.1668549 | H43: 101.0368805
A44: 301.5735779 | B44: 101.0279986 | C44: 101.0715637 | D44: 100.9980316 | E44: 100.8640213 | F44: 101.1032257 | G44: 101.1382828 | H44: 100.9928665
A45: 312.2430725 | B45: 100.9628614 | C45: 101.0062485 | D45: 100.9169922 | E45: 100.8020935 | F45: 101.0457153 | G45: 101.0657349 | H45: 100.9403839
A46: 323.2900391 | B46: 100.9006399 | C46: 100.9314499 | D46: 100.848587 | E46: 100.7400436 | F46: 100.9959488 | G46: 100.9946671 | H46: 100.8931427
A47: 334.7278442 | B47: 100.8422012 | C47: 100.8604584 | D47: 100.7898865 | E47: 100.6830368 | F47: 100.9469604 | G47: 100.9283218 | H47: 100.8445435
A48: 346.5703125 | B48: 100.7867432 | C48: 100.7975922 | D48: 100.7380295 | E48: 100.6288986 | F48: 100.8915939 | G48: 100.8666 | H48: 100.7977448
A49: 358.8490601 | B49: 100.7276357 | C49: 100.732254 | D49: 100.6850739 | E49: 100.5699921 | F49: 100.830307 | G49: 100.8031616 | H49: 100.7450256
A50: 371.5449219 | B50: 100.661733 | C50: 100.6592636 | D50: 100.6202087 | E50: 100.5053635 | F50: 100.7684479 | G50: 100.7321777 | H50: 100.6849365
A51: 384.6899719 | B51: 100.6015066 | C51: 100.5867157 | D51: 100.5542526 | E51: 100.4477997 | F51: 100.7242279 | G51: 100.6644745 | H51: 100.6315689
A52: 398.3000793 | B52: 100.546538 | C52: 100.5196686 | D52: 100.4914322 | E52: 100.3962479 | F52: 100.6867981 | G52: 100.6022186 | H52: 100.5828629
A53: 412.3916931 | B53: 100.4957466 | C53: 100.4626083 | D53: 100.4317322 | E53: 100.3502579 | F53: 100.6465149 | G53: 100.5476074 | H53: 100.535759
A54: 426.9818726 | B54: 100.4131393 | C54: 100.3826294 | D54: 100.3410034 | E54: 100.2737961 | F54: 100.5622177 | G54: 100.4668579 | H54: 100.4523315
A55: 442.0882263 | B55: 100.2939771 | C55: 100.274086 | D55: 100.2206039 | E55: 100.1606216 | F55: 100.4322052 | G55: 100.348259 | H55: 100.3280869
A56: 457.7290649 | B56: 100.1358185 | C56: 100.1263504 | D56: 100.0714951 | E56: 100.0032043 | F56: 100.258606 | G56: 100.1895142 | H56: 100.165741
A57: 473.9232483 | B57: 99.98085149 | C57: 99.97041321 | D57: 99.91822815 | E57: 99.84625244 | F57: 100.1039886 | G57: 100.0309067 | H57: 100.0153198
A58: 490.7140198 | B58: 99.87430064 | C58: 99.85089874 | D58: 99.80095673 | E58: 99.73757935 | F58: 100.0124893 | G58: 99.92427826 | H58: 99.91960144
A59: 508.0751953 | B59: 99.84579213 | C59: 99.80675507 | D59: 99.75019073 | E59: 99.71198273 | F59: 100.0040283 | G59: 99.89782715 | H59: 99.90396881
A60: 526.0505981 | B60: 99.88221995 | C60: 99.8432312 | D60: 99.77603912 | E60: 99.75130463 | F60: 100.0450363 | G60: 99.93619537 | H60: 99.94151306
A61: 544.6619263 | B61: 99.94426854 | C61: 99.91952515 | D61: 99.84601593 | E61: 99.81295776 | F61: 100.0930252 | G61: 99.99827576 | H61: 99.99581146
A62: 563.9317627 | B62: 100.0185941 | C62: 100.0090027 | D62: 99.93442535 | E62: 99.88310242 | F62: 100.1477966 | G62: 100.0747757 | H62: 100.0624619
A63: 583.8833618 | B63: 100.1118774 | C63: 100.1099472 | D63: 100.0418549 | E63: 99.97517395 | F63: 100.2250977 | G63: 100.1682053 | H63: 100.1509857
A64: 604.5407715 | B64: 100.2424367 | C64: 100.2393799 | D64: 100.1785202 | E64: 100.1133347 | F64: 100.347496 | G64: 100.2938309 | H64: 100.2820587
A65: 625.9290771 | B65: 100.4296328 | C65: 100.4240799 | D65: 100.3685303 | E65: 100.3121796 | F65: 100.531929 | G65: 100.4704056 | H65: 100.4706726
A66: 648.0740967 | B66: 100.6667798 | C66: 100.6600494 | D66: 100.6051483 | E66: 100.5597992 | F66: 100.7698746 | G66: 100.6962814 | H66: 100.7095261
A67: 671.0349121 | B67: =AVERAGE(C67:H67) -> 100.9627444 | C67: 100.9555969 | D67: 100.8966446 | E67: 100.8594589 | F67: 101.0689774 | G67: 100.9846191 | H67: 101.0111694
A68: 694.7756958 | B68: 101.3116862 | C68: 101.302948 | D68: 101.2406387 | E68: 101.2089005 | F68: 101.4200897 | G68: 101.3274231 | H68: 101.3701172
A69: 719.3564453 | B69: 101.7069206 | C69: 101.6893845 | D69: 101.6282578 | E69: 101.6014252 | F69: 101.8180923 | G69: 101.7207794 | H69: 101.7835846
A70: 744.8068848 | B70: 102.1351089 | C70: 102.1092682 | D70: 102.0507431 | E70: 102.0251312 | F70: 102.242363 | G70: 102.1572876 | H70: 102.2258606
A71: 771.1577148 | B71: 102.5536105 | C71: 102.5405197 | D71: 102.4753418 | E71: 102.4406662 | F71: 102.6466827 | G71: 102.5908203 | H71: 102.6276321
A72: 798.4407959 | B72: 102.9240189 | C72: 102.9500198 | D72: 102.866272 | E72: 102.8053665 | F72: 102.998909 | G72: 102.9728699 | H72: 102.950676
A73: 826.6891479 | B73: 103.205176 | C73: 103.2779922 | D73: 103.170845 | E73: 103.0785522 | F73: 103.2709656 | G73: 103.2506638 | H73: 103.1820374
A74: 855.9369507 | B74: 103.3857676 | C74: 103.4737473 | D74: 103.3582611 | E74: 103.2559433 | F74: 103.4626999 | G74: 103.4106216 | H74: 103.3533325
A75: 886.262207 | B75: 103.4896355 | C75: 103.5498276 | D75: 103.4433975 | E75: 103.3663788 | F75: 103.5940704 | G75: 103.4899521 | H75: 103.4941864
A76: 917.6176147 | B76: 103.5737724 | C76: 103.5935135 | D76: 103.5002441 | E76: 103.4633408 | F76: 103.7007904 | G76: 103.5570526 | H76: 103.6276932
A77: 950.0823975 | B77: 103.6529045 | C77: 103.6364746 | D77: 103.5561218 | E77: 103.5523605 | F77: 103.7937851 | G77: 103.6364746 | H77: 103.7422104
A78: 983.6957397 | B78: 103.7405319 | C78: 103.7042389 | D78: 103.6399384 | E78: 103.6387558 | F78: 103.8815384 | G78: 103.7413406 | H78: 103.8373795
A79: 1018.498352 | B79: 103.8317248 | C79: 103.7847366 | D79: 103.7420578 | E79: 103.729538 | F79: 103.9609985 | G79: 103.8520432 | H79: 103.9209747
A80: 1054.532227 | B80: 103.9188627 | C80: 103.8652725 | D80: 103.8490448 | E80: 103.8128357 | F80: 104.0303421 | G80: 103.9576569 | H80: 103.998024
A81: 1091.840942 | B81: 104.0163752 | C81: 103.9645767 | D81: 103.9571686 | E81: 103.903595 | F81: 104.1279373 | G81: 104.0686417 | H81: 104.0763321
A82: 1130.469604 | B82: 104.1080755 | C82: 104.0691757 | D82: 104.0342865 | E82: 103.9938965 | F82: 104.2434464 | G82: 104.1671448 | H82: 104.1405029
A83: 1170.464966 | B83: 104.1915296 | C83: 104.174118 | D83: 104.0942688 | E83: 104.0806122 | F83: 104.3455963 | G83: 104.2518539 | H83: 104.2027283
A84: 1211.933716 | B84: 104.270518 | C84: 104.2747803 | D84: 104.1640701 | E84: 104.1573715 | F84: 104.4146118 | G84: 104.3273926 | H84: 104.2848816
A85: 1254.811279 | B85: 104.3326874 | C85: 104.3499603 | D85: 104.2396164 | E85: 104.2047501 | F85: 104.4477615 | G85: 104.3869171 | H85: 104.3671188
A86: 1299.205688 | B86: 104.3474859 | C86: 104.372261 | D86: 104.2799149 | E86: 104.1956482 | F86: 104.4442673 | G86: 104.4030304 | H86: 104.3897934
A87: 1345.170776 | B87: 104.2543666 | C87: 104.2959366 | D87: 104.2029343 | E87: 104.0991211 | F87: 104.346962 | G87: 104.3118286 | H87: 104.2694168
A88: 1392.762207 | B88: 104.0107752 | C88: 104.0516281 | D88: 103.9640274 | E88: 103.8865585 | F88: 104.0882874 | G88: 104.0669022 | H88: 104.0072479
A89: 1442.037231 | B89: 103.7147268 | C89: 103.7342072 | D89: 103.6643753 | E89: 103.6280823 | F89: 103.7728729 | G89: 103.7601471 | H89: 103.7286758
A90: 1493.055664 | B90: 103.4918315 | C90: 103.4859085 | D90: 103.4213867 | E90: 103.4199905 | F90: 103.5567398 | G90: 103.5128784 | H90: 103.5540848
A91: 1545.87915 | B91: 103.475427 | C91: 103.454361 | D91: 103.3713455 | E91: 103.4105682 | F91: 103.5593872 | G91: 103.4639359 | H91: 103.5929642
A92: 1600.64856 | B92: 103.6683502 | C92: 103.6229019 | D92: 103.5274353 | E92: 103.6445007 | F92: 103.7557755 | G92: 103.6286316 | H92: 103.8308563
A93: 1657.278564 | B93: 104.0198085 | C93: 103.9333801 | D93: 103.8476562 | E93: 104.0639572 | F93: 104.0904694 | G93: 103.9689941 | H93: 104.2143936
A94: 1715.912109 | B94: 104.4502831 | C94: 104.327713 | D94: 104.2902985 | E94: 104.5229034 | F94: 104.5037079 | G94: 104.4262619 | H94: 104.6308136
A95: 1776.620117 | B95: 104.8388176 | C95: 104.7199707 | D95: 104.7151947 | E95: 104.8808746 | F95: 104.8947525 | G95: 104.8498993 | H95: 104.9722137
A96: 1839.47583 | B96: 105.1283684 | C96: 105.0387726 | D96: 105.0449219 | E96: 105.1267548 | F96: 105.1881104 | G96: 105.1684952 | H96: 105.2031555
A97: 1904.55542 | B97: 105.3002993 | C97: 105.2436905 | D97: 105.2393265 | E97: 105.2910156 | F97: 105.3444061 | G97: 105.3423996 | H97: 105.3409576
A98: 1971.937378 | B98: 105.3567429 | C98: 105.322998 | D98: 105.2903519 | E98: 105.3631668 | F98: 105.382843 | G98: 105.3771057 | H98: 105.4039917
A99: 2041.703369 | B99: 105.2754822 | C99: 105.2588425 | D99: 105.1735764 | E99: 105.3025818 | F99: 105.3043747 | G99: 105.252243 | H99: 105.3612747
A100: 2113.937744 | B100: 105.0244738 | C100: 105.0234222 | D100: 104.8795547 | E100: 105.0628815 | F100: 105.0715714 | G100: 104.9534836 | H100: 105.1559296
A101: 2188.833008 | B101: 104.7232602 | C101: 104.737381 | D101: 104.5385666 | E101: 104.7685394 | F101: 104.8011703 | G101: 104.6177902 | H101: 104.8761139
A102: 2266.272705 | B102: 104.6114642 | C102: 104.6378784 | D102: 104.4258957 | E102: 104.6438065 | F102: 104.7097702 | G102: 104.514122 | H102: 104.7373123
A103: 2346.452148 | B103: 104.862601 | C103: 104.8884583 | D103: 104.7014084 | E103: 104.8666306 | F103: 104.9826279 | G103: 104.7955475 | H103: 104.9409332
A104: 2429.468018 | B104: 105.3761775 | C104: 105.3809357 | D104: 105.2439499 | E104: 105.3557892 | F104: 105.5153351 | G104: 105.3368835 | H104: 105.4241714
A105: 2515.421143 | B105: 105.8218625 | C105: 105.8002701 | D105: 105.7128983 | E105: 105.7841187 | F105: 105.9714966 | G105: 105.7974472 | H105: 105.8649445
A106: 2604.415283 | B106: 105.8979607 | C106: 105.8624115 | D106: 105.8020935 | E106: 105.8534775 | F106: 106.0390167 | G106: 105.8735886 | H106: 105.9571762
A107: 2696.558105 | B107: 105.5856311 | C107: 105.5576324 | D107: 105.498024 | E107: 105.5349579 | F107: 105.7076874 | G107: 105.5599976 | H107: 105.6554871
A108: 2791.960693 | B108: 105.1342405 | C108: 105.121666 | D108: 105.0697479 | E108: 105.070137 | F108: 105.2351913 | G108: 105.1219177 | H108: 105.1867828
A109: 2890.87793 | B109: 104.7811228 | C109: 104.7711716 | D109: 104.7492142 | E109: 104.7023468 | F109: 104.8599319 | G109: 104.8031235 | H109: 104.8009491
A110: 2993.155518 | B110: 104.505853 | C110: 104.4830017 | D110: 104.506546 | E110: 104.4160004 | F110: 104.5621643 | G110: 104.567749 | H110: 104.4996567
A111: 3099.051514 | B111: 104.0041237 | C111: 103.9681625 | D111: 104.0229416 | E111: 103.9132996 | F111: 104.0401077 | G111: 104.0902328 | H111: 103.9899979
A112: 3208.694092 | B112: 103.0338122 | C112: 102.9972839 | D112: 103.0686417 | E112: 102.9451599 | F112: 103.0529099 | G112: 103.1245575 | H112: 103.0143204
A113: 3322.21582 | B113: 101.4837545 | C113: 101.4536514 | D113: 101.5465775 | E113: 101.3875427 | F113: 101.4880829 | G113: 101.5700531 | H113: 101.4566193
A114: 3439.753906 | B114: 99.50152461 | C114: 99.48362732 | D114: 99.5824585 | E114: 99.40645599 | F114: 99.49316406 | G114: 99.57432556 | H114: 99.46911621
A115: 3561.450439 | B115: 98.03113302 | C115: 98.02179718 | D115: 98.08489227 | E115: 97.96815491 | F115: 98.03523254 | G115: 98.06930542 | H115: 98.00741577
A116: 3687.452393 | B116: 97.69365056 | C116: 97.67993927 | D116: 97.70321655 | E116: 97.66866302 | F116: 97.70815277 | G116: 97.71497345 | H116: 97.68695831
A117: 3817.912109 | B117: 98.15394847 | C117: 98.11207581 | D117: 98.13796234 | E117: 98.15190887 | F117: 98.16584778 | G117: 98.18443298 | H117: 98.17146301
A118: 3953.178223 | B118: 98.48040644 | C118: 98.39527893 | D118: 98.47476959 | E118: 98.46767426 | F118: 98.46453094 | G118: 98.54302216 | H118: 98.53716278
A119: 4093.039307 | B119: 98.01993942 | C119: 97.89987946 | D119: 98.03720856 | E119: 98.01943207 | F119: 97.96115112 | G119: 98.0956955 | H119: 98.10626984
A120: 4237.848633 | B120: 97.04952367 | C120: 96.92500305 | D120: 97.07046509 | E120: 97.12844086 | F120: 96.94668579 | G120: 97.06863403 | H120: 97.15791321
A121: 4387.78125 | B121: 96.07603709 | C121: 95.97939301 | D121: 96.09215546 | E121: 96.25397491 | F121: 95.92969513 | G121: 95.99949646 | H121: 96.20150757
A122: 4543.018555 | B122: 95.47027334 | C122: 95.39943695 | D122: 95.47144318 | E122: 95.69937134 | F122: 95.30053711 | G122: 95.33346558 | H122: 95.61738586
A123: 4703.747559 | B123: 95.54231262 | C123: 95.48000336 | D123: 95.52204895 | E123: 95.7637558 | F123: 95.38079071 | G123: 95.39535522 | H123: 95.71192169
A124: 4870.163574 | B124: 96.3275795 | C124: 96.26886749 | D124: 96.30265045 | E124: 96.49975586 | F124: 96.19390106 | G124: 96.21886444 | H124: 96.48143768
A125: 5042.466797 | B125: 97.09501139 | C125: 97.05220032 | D125: 97.09081268 | E125: 97.20152283 | F125: 97.00537109 | G125: 97.03004456 | H125: 97.19011688
A126: 5221.118164 | B126: 97.54501851 | C126: 97.56210327 | D126: 97.59155273 | E126: 97.51132965 | F126: 97.5435791 | G126: 97.53691864 | H126: 97.52462769
A127: 5405.838379 | B127: 97.71786245 | C127: 97.8285675 | D127: 97.80590057 | E127: 97.47483063 | F127: 97.85134125 | G127: 97.79734039 | H127: 97.54919434
A128: 5597.09375 | B128: 97.97062937 | C128: 98.20011139 | D128: 98.09143066 | E128: 97.47832489 | F128: 98.2765274 | G128: 98.1470108 | H128: 97.63037109
A129: 5795.115234 | B129: 98.45571264 | C129: 98.80797577 | D129: 98.58882904 | E129: 97.78562164 | F129: 98.89137268 | G129: 98.68785095 | H129: 97.97262573

Sheet Sheet1
C1: DUT LLWG1904030911 2019-04-08 08-40-17-3 UTC+0800 | D1: DUT LLWG1904030906 2019-04-08 08-39-55-3 UTC+0800 | E1: DUT LLWG1904030408 2019-04-08 08-07-44-5 UTC+0800 | F1: DUT LLWG1904030847 2019-04-08 08-37-10-4 UTC+0800 | G1: DUT LLWG1904030911 2019-04-08 08-40-17-3 UTC+0800 | H1: DUT LLWG1904030906 2019-04-08 08-39-55-3 UTC+0800 | I1: DUT LLWG1904030408 2019-04-08 08-07-44-5 UTC+0800 | J1: DUT LLWG1904030847 2019-04-08 08-37-10-4 UTC+0800
A2: 70.00170898 | B2: 103.5920385 | C2: 103.1917114 | D2: 103.0126038 | E2: 103.0168533 | F2: 103.0106277 | G2: =C2-$B2 -> -0.4003270467 | H2: =D2-$B2 -> -0.5794347127 | I2: -0.57518514 | J2: -0.5814107259
A3: 72.47832489 | B3: 103.535436 | C3: 103.2222443 | D3: 103.0776138 | E3: 103.1389923 | F3: 103.2262955 | G3: =C3-$B3 -> -0.3131917318 | H3: =D3-$B3 -> -0.4578221639 | I3: =E3-$B3 -> -0.3964436849 | J3: =F3-$B3 -> -0.3091405233
A4: 75.04256439 | B4: 103.4664879 | C4: 103.248642 | D4: 103.1547546 | E4: 103.1889572 | F4: 103.2640228 | G4: -0.2178459167 | H4: -0.3117332458 | I4: -0.2775306702 | J4: -0.2024650574
A5: 77.69752502 | B5: 103.4238561 | C5: 103.3249054 | D5: 103.2441025 | E5: 103.2574234 | F5: 103.3084183 | G5: -0.09895070394 | H5: -0.1797536214 | I5: -0.1664326986 | J5: -0.1154378255
A6: 80.44641876 | B6: 103.4196103 | C6: 103.4456253 | D6: 103.3394699 | E6: 103.363205 | F6: 103.3885422 | G6: 0.02601496379 | H6: -0.08014043172 | I6: -0.05640538533 | J6: -0.0310681661
A7: 83.29657745 | B7: 103.4425863 | C7: 103.5749588 | D7: 103.4584503 | E7: 103.497963 | F7: 103.5050125 | G7: 0.1323725382 | H7: 0.01586405436 | I7: 0.05537668864 | J7: 0.06242624919
A8: 86.24356079 | B8: 103.4967016 | C8: 103.7129822 | D8: 103.5979538 | E8: 103.6557617 | F8: 103.6387177 | G8: 0.2162806193 | H8: 0.101252238 | I8: 0.1590601603 | J8: 0.1420160929
A9: 89.29480743 | B9: 103.5540339 | C9: 103.8351746 | D9: 103.7466354 | E9: 103.7920227 | F9: 103.7730103 | G9: 0.2811406453 | H9: 0.1926015218 | I9: 0.2379887899 | J9: 0.2189763387
A10: 92.45401001 | B10: 103.617513 | C10: 103.9626236 | D10: 103.880249 | E10: 103.9208298 | F10: 103.8929825 | G10: 0.3451105754 | H10: 0.2627360026 | I10: 0.3033167521 | J10: 0.2754694621
A11: 95.72497559 | B11: 103.6608988 | C11: 104.0557022 | D11: 103.990509 | E11: 104.0229645 | F11: 103.9941101 | G11: 0.3948033651 | H11: 0.3296101888 | I11: 0.3620656331 | J11: 0.333211263
A12: 99.11167145 | B12: 103.6480001 | C12: 104.0825195 | D12: 104.0185699 | E12: 104.0560837 | F12: 104.0155945 | G12: 0.4345194499 | H12: 0.3705698649 | I12: 0.4080835978 | J12: 0.367594401
A13: 102.6181793 | B13: 103.5872815 | C13: 104.0528641 | D13: 103.9922409 | E13: 104.0302505 | F13: 103.9805603 | G13: 0.4655825297 | H13: 0.4049593608 | I13: 0.4429690043 | J13: 0.3932787577
A14: 106.2487488 | B14: 103.4734192 | C14: 103.9704666 | D14: 103.9049988 | E14: 103.9464874 | F14: 103.8854446 | G14: 0.4970474243 | H14: 0.4315795898 | I14: 0.4730682373 | J14: 0.4120254517
A15: 110.0130768 | B15: 103.3407745 | C15: 103.8592224 | D15: 103.799736 | E15: 103.8347321 | F15: 103.7696075 | G15: 0.518447876 | H15: 0.4589614868 | I15: 0.4939575195 | J15: 0.4288330078
A16: 113.9052734 | B16: 103.224191 | C16: 103.7647324 | D16: 103.6997299 | E16: 103.7327499 | F16: 103.6657715 | G16: 0.540541331 | H16: 0.4755388896 | I16: 0.5085589091 | J16: 0.4415804545
A17: 117.935173 | B17: 103.1499532 | C17: 103.7064514 | D17: 103.6365814 | E17: 103.6631088 | F17: 103.5995941 | G17: 0.5564982096 | H17: 0.4866282145 | I17: 0.5131556193 | J17: 0.4496409098
A18: 122.1076508 | B18: 103.0822131 | C18: 103.6481934 | D18: 103.5751877 | E18: 103.5942764 | F18: 103.5329285 | G18: 0.5659802755 | H18: 0.4929745992 | I18: 0.5120633443 | J18: 0.4507153829
A19: 126.427742 | B19: 102.81066 | C19: 103.3840332 | D19: 103.314476 | E19: 103.3277969 | F19: 103.277832 | G19: 0.5733731588 | H19: 0.5038159688 | I19: 0.5171368917 | J19: 0.4671719869
A20: 130.9006805 | B20: 102.2593168 | C20: 102.814064 | D20: 102.7794037 | E20: 102.802063 | F20: 102.7443619 | G20: 0.5547472636 | H20: 0.5200869242 | I20: 0.542746226 | J20: 0.4850451152
A21: 135.5318756 | B21: 101.6042226 | C21: 102.123764 | D21: 102.0928802 | E21: 102.1343155 | F21: 102.0829239 | G21: 0.5195414225 | H21: 0.4886576335 | I21: 0.5300928752 | J21: 0.4787012736
A22: 140.3269043 | B22: 101.1152687 | C22: 101.5914612 | D22: 101.5703506 | E22: 101.6215515 | F22: 101.5537338 | G22: 0.4761924744 | H22: 0.4550819397 | I22: 0.5062828064 | J22: 0.4384651184
A23: 145.2915955 | B23: 100.7168668 | C23: 101.1509399 | D23: 101.1124115 | E23: 101.1283264 | F23: 101.0629959 | G23: 0.4340731303 | H23: 0.3955446879 | I23: 0.4114596049 | J23: 0.3461290995
A24: 150.4391785 | B24: 100.4120687 | C24: 100.8844757 | D24: 100.8457108 | E24: 100.8257751 | F24: 100.7501984 | G24: 0.4724070231 | H24: 0.4336420695 | I24: 0.4137064616 | J24: 0.3381296794
A25: 155.7616272 | B25: 100.2201843 | C25: 100.6959 | D25: 100.6601715 | E25: 100.6054077 | F25: 100.5415878 | G25: 0.4757156372 | H25: 0.4399871826 | I25: 0.3852233887 | J25: 0.3214035034
A26: 161.2723694 | B26: 100.2703603 | C26: 100.7551498 | D26: 100.721611 | E26: 100.6597595 | F26: 100.6126938 | G26: 0.4847895304 | H26: 0.4512507121 | I26: 0.3893992106 | J26: 0.3423334757
A27: 166.9781036 | B27: 100.4782829 | C27: 100.9255981 | D27: 100.8945923 | E27: 100.8358612 | F27: 100.792923 | G27: 0.4473152161 | H27: 0.4163093567 | I27: 0.3575782776 | J27: 0.3146400452
A28: 172.8856812 | B28: 100.6152344 | C28: 101.025444 | D28: 100.9899216 | E28: 100.9348679 | F28: 100.895134 | G28: 0.4102096558 | H28: 0.3746871948 | I28: 0.3196334839 | J28: 0.2798995972
A29: 179.0022736 | B29: 100.6694031 | C29: 101.0612717 | D29: 101.0222397 | E29: 100.972702 | F29: 100.9245758 | G29: 0.3918685913 | H29: 0.3528366089 | I29: 0.3032989502 | J29: 0.2551727295
A30: 185.3352661 | B30: 100.6650836 | C30: 101.0343399 | D30: 100.995903 | E30: 100.9309464 | F30: 100.8998032 | G30: 0.3692563375 | H30: 0.3308194478 | I30: 0.2658627828 | J30: 0.2347195943
A31: 191.8923187 | B31: 100.5632947 | C31: 100.9118271 | D31: 100.8610916 | E31: 100.7963028 | F31: 100.7721558 | G31: 0.3485323588 | H31: 0.2977968852 | I31: 0.2330080668 | J31: 0.2088610331
A32: 198.6909332 | B32: 100.371137 | C32: 100.7044754 | D32: 100.6359558 | E32: 100.5770264 | F32: 100.5500641 | G32: 0.3333384196 | H32: 0.2648188273 | I32: 0.205889384 | J32: 0.1789271037
A33: 205.7205048 | B33: 100.1521619 | C33: 100.454483 | D33: 100.3403473 | E33: 100.3328552 | F33: 100.2759857 | G33: 0.3023211161 | H33: 0.1881853739 | I33: 0.1806933085 | J33: 0.1238238017
A34: 212.9987793 | B34: 99.99818293 | C34: 100.2524948 | D34: 100.1142807 | E34: 100.1589355 | F34: 100.0624084 | G34: 0.2543118795 | H34: 0.1160977681 | I34: 0.1607526143 | J34: 0.06422551473
A35: 220.5345459 | B35: 99.87760671 | C35: 100.0690613 | D35: 99.90963745 | E35: 100.0187607 | F35: 99.86493683 | G35: 0.1914545695 | H35: 0.03203074137 | I35: 0.1411539714 | J35: -0.01266988118
A36: 228.3369293 | B36: 99.81663513 | C36: 99.96833801 | D36: 99.82540131 | E36: 99.91612244 | F36: 99.77342987 | G36: 0.1517028809 | H36: 0.008766174316 | I36: 0.09948730469 | J36: -0.04320526123
A37: 236.4153442 | B37: 99.87137222 | C37: 100.0331879 | D37: 99.91584778 | E37: 99.94812012 | F37: 99.8602829 | G37: 0.1618156433 | H37: 0.04447555542 | I37: 0.07674789429 | J37: -0.01108932495
A38: 244.7795868 | B38: 100.0539398 | C38: 100.2329407 | D38: 100.1627884 | E38: 100.0924606 | F38: 100.1049881 | G38: 0.1790008545 | H38: 0.1088485718 | I38: 0.03852081299 | J38: 0.05104827881
A39: 253.439743 | B39: 100.3434436 | C39: 100.5399094 | D39: 100.5103302 | E39: 100.3841171 | F39: 100.4663467 | G39: 0.1964658101 | H39: 0.1668866475 | I39: 0.04067357381 | J39: 0.1229031881
A40: 262.4062805 | B40: 100.6186867 | C40: 100.7908707 | D40: 100.7907181 | E40: 100.6473999 | F40: 100.7514954 | G40: 0.1721839905 | H40: 0.1720314026 | I40: 0.02871322632 | J40: 0.1328086853
A41: 271.7031555 | B41: 100.8580144 | C41: 101.0042419 | D41: 101.003273 | E41: 100.8740463 | F41: 100.9605331 | G41: 0.1462275187 | H41: 0.1452585856 | I41: 0.01603190104 | J41: 0.1025187174
A42: 281.3158569 | B42: 101.0115255 | C42: 101.1263733 | D42: 101.0990753 | E42: 100.9946594 | F42: 101.0508347 | G42: 0.114847819 | H42: 0.08754984538 | I42: -0.01686604818 | J42: 0.03930918376
A43: 291.2686462 | B43: 101.0619799 | C43: 101.1487961 | D43: 101.0832443 | E43: 101.0165176 | F43: 101.0304184 | G43: 0.08681615194 | H43: 0.02126439412 | I43: -0.04546229045 | J43: -0.03156153361
A44: 301.5735779 | B44: 101.0279986 | C44: 101.097702 | D44: 101.0056763 | E44: 100.9565811 | F44: 100.9543076 | G44: 0.06970342 | H44: -0.02232233683 | I44: -0.07141749064 | J44: -0.07369105021
A45: 312.2430725 | B45: 100.9628614 | C45: 101.0260086 | D45: 100.9298248 | E45: 100.8868027 | F45: 100.8817902 | G45: 0.06314722697 | H45: -0.03303654989 | I45: -0.07605870565 | J45: -0.08107121785
A46: 323.2900391 | B46: 100.9006399 | C46: 100.9536133 | D46: 100.8636398 | E46: 100.8126526 | F46: 100.8149643 | G46: 0.05297342936 | H46: -0.03700002035 | I46: -0.087987264 | J46: -0.08567555745
A47: 334.7278442 | B47: 100.8422012 | C47: 100.8786316 | D47: 100.7995987 | E47: 100.7389221 | F47: 100.7483521 | G47: 0.03643035889 | H47: -0.04260253906 | I47: -0.1032791138 | J47: -0.09384918213
A48: 346.5703125 | B48: 100.7867432 | C48: 100.801857 | D48: 100.7341537 | E48: 100.6697922 | F48: 100.6820602 | G48: 0.01511383057 | H48: -0.0525894165 | I48: -0.1169509888 | J48: -0.1046829224
A49: 358.8490601 | B49: 100.7276357 | C49: 100.7274628 | D49: 100.6660004 | E49: 100.5979309 | F49: 100.6138763 | G49: -0.0001729329425 | H49: -0.06163533529 | I49: -0.1297047933 | J49: -0.1137593587
A50: 371.5449219 | B50: 100.661733 | C50: 100.6499939 | D50: 100.5871964 | E50: 100.5158234 | F50: 100.543251 | G50: -0.01173909505 | H50: -0.07453664144 | I50: -0.1459096273 | J50: -0.1184819539
A51: 384.6899719 | B51: 100.6015066 | C51: 100.5787811 | D51: 100.5123291 | E51: 100.4358673 | F51: 100.4833908 | G51: -0.02272542318 | H51: -0.08917744954 | I51: -0.1656392415 | J51: -0.118115743
A52: 398.3000793 | B52: 100.546538 | C52: 100.5116653 | D52: 100.4364166 | E52: 100.3604431 | F52: 100.426506 | G52: -0.03487269084 | H52: -0.1101214091 | I52: -0.1860949198 | J52: -0.1200319926
A53: 412.3916931 | B53: 100.4957466 | C53: 100.444458 | D53: 100.3634186 | E53: 100.2917862 | F53: 100.3622437 | G53: -0.05128860474 | H53: -0.1323280334 | I53: -0.2039604187 | J53: -0.1335029602
A54: 426.9818726 | B54: 100.4131393 | C54: 100.3483887 | D54: 100.2610168 | E54: 100.1988831 | F54: 100.2552872 | G54: -0.06475067139 | H54: -0.1521224976 | I54: -0.2142562866 | J54: -0.1578521729
A55: 442.0882263 | B55: 100.2939771 | C55: 100.2211456 | D55: 100.1329651 | E55: 100.0664062 | F55: 100.1141357 | G55: -0.07283147176 | H55: -0.1610120138 | I55: -0.2275708516 | J55: -0.1798413595
A56: 457.7290649 | B56: 100.1358185 | C56: 100.0612793 | D56: 99.97145081 | E56: 99.90081024 | F56: 99.95223236 | G56: -0.07453918457 | H56: -0.1643676758 | I56: -0.2350082397 | J56: -0.1835861206
A57: 473.9232483 | B57: 99.98085149 | C57: 99.90680695 | D57: 99.81748962 | E57: 99.74728394 | F57: 99.80900574 | G57: -0.07404454549 | H57: -0.1633618673 | I57: -0.2335675557 | J57: -0.171845754
A58: 490.7140198 | B58: 99.87430064 | C58: 99.79826355 | D58: 99.70968628 | E58: 99.65322113 | F58: 99.71772766 | G58: -0.07603708903 | H58: -0.1646143595 | I58: -0.2210795085 | J58: -0.1565729777
A59: 508.0751953 | B59: 99.84579213 | C59: 99.76383972 | D59: 99.67693329 | E59: 99.63309479 | F59: 99.69232178 | G59: -0.08195241292 | H59: -0.168858846 | I59: -0.212697347 | J59: -0.1534703573
A60: 526.0505981 | B60: 99.88221995 | C60: 99.79491425 | D60: 99.70663452 | E60: 99.65839386 | F60: 99.71285248 | G60: -0.08730570475 | H60: -0.1755854289 | I60: -0.2238260905 | J60: -0.1693674723
A61: 544.6619263 | B61: 99.94426854 | C61: 99.85137177 | D61: 99.76281738 | E61: 99.69882965 | F61: 99.7511673 | G61: -0.09289677938 | H61: -0.1814511617 | I61: -0.2454388936 | J61: -0.1931012472
A62: 563.9317627 | B62: 100.0185941 | C62: 99.92144775 | D62: 99.83106995 | E62: 99.75388336 | F62: 99.80141449 | G62: -0.09714635213 | H62: -0.1875241597 | I62: -0.2647107442 | J62: -0.2171796163
A63: 583.8833618 | B63: 100.1118774 | C63: 100.0106506 | D63: 99.91926575 | E63: 99.84197235 | F63: 99.88111115 | G63: -0.1012268066 | H63: -0.1926116943 | I63: -0.2699050903 | J63: -0.2307662964
A64: 604.5407715 | B64: 100.2424367 | C64: 100.1386185 | D64: 100.0433502 | E64: 99.97283173 | F64: 100.0134735 | G64: -0.1038182577 | H64: -0.1990865072 | I64: -0.2696050008 | J64: -0.2289632161
A65: 625.9290771 | B65: 100.4296328 | C65: 100.3233948 | D65: 100.2253723 | E65: 100.1561356 | F65: 100.2078552 | G65: -0.1062380473 | H65: -0.2042605082 | I65: -0.2734972636 | J65: -0.2217775981
A66: 648.0740967 | B66: 100.6667798 | C66: 100.5585785 | D66: 100.4598541 | E66: 100.3879395 | F66: 100.4541779 | G66: -0.1082013448 | H66: -0.20692571 | I66: -0.2788403829 | J66: -0.2126019796
A67: 671.0349121 | B67: 100.9627444 | C67: 100.8518295 | D67: 100.758049 | E67: 100.6832886 | F67: 100.7548981 | G67: =C67-$B67 -> -0.1109148661 | H67: =D67-$B67 -> -0.2046953837 | I67: =E67-$B67 -> -0.2794558207 | J67: =F67-$B67 -> -0.2078463236
A68: 694.7756958 | B68: 101.3116862 | C68: 101.2019882 | D68: 101.1189651 | E68: 101.0454025 | F68: 101.112793 | G68: -0.1096979777 | H68: -0.192721049 | I68: -0.2662836711 | J68: -0.1988932292
A69: 719.3564453 | B69: 101.7069206 | C69: 101.6043701 | D69: 101.5347443 | E69: 101.4660416 | F69: 101.5271988 | G69: -0.1025505066 | H69: -0.1721763611 | I69: -0.2408790588 | J69: -0.1797218323
A70: 744.8068848 | B70: 102.1351089 | C70: 102.0412445 | D70: 101.9683075 | E70: 101.918602 | F70: 101.9682007 | G70: -0.09386444092 | H70: -0.1668014526 | I70: -0.216506958 | J70: -0.1669082642
A71: 771.1577148 | B71: 102.5536105 | C71: 102.452713 | D71: 102.3561096 | E71: 102.332634 | F71: 102.3761749 | G71: -0.1008974711 | H71: -0.1975008647 | I71: -0.2209765116 | J71: -0.177435557
A72: 798.4407959 | B72: 102.9240189 | C72: 102.7937393 | D72: 102.6686249 | E72: 102.655014 | F72: 102.7144394 | G72: -0.130279541 | H72: -0.2553939819 | I72: -0.2690048218 | J72: -0.2095794678
A73: 826.6891479 | B73: 103.205176 | C73: 103.0429306 | D73: 102.8998032 | E73: 102.8719559 | F73: 102.9525681 | G73: -0.1622454325 | H73: -0.3053728739 | I73: -0.333220164 | J73: -0.2526079814
A74: 855.9369507 | B74: 103.3857676 | C74: 103.2104111 | D74: 103.0634766 | E74: 103.0197067 | F74: 103.0989227 | G74: -0.175356547 | H74: -0.3222910563 | I74: -0.3660608927 | J74: -0.2868448893
A75: 886.262207 | B75: 103.4896355 | C75: 103.3272247 | D75: 103.1864853 | E75: 103.1540833 | F75: 103.1977997 | G75: -0.1624107361 | H75: -0.303150177 | I75: -0.3355522156 | J75: -0.2918357849
A76: 917.6176147 | B76: 103.5737724 | C76: 103.425766 | D76: 103.3037109 | E76: 103.2921829 | F76: 103.3038101 | G76: -0.1480064392 | H76: -0.2700614929 | I76: -0.2815895081 | J76: -0.2699623108
A77: 950.0823975 | B77: 103.6529045 | C77: 103.5070343 | D77: 103.4160233 | E77: 103.4128342 | F77: 103.4207687 | G77: -0.1458702087 | H77: -0.2368812561 | I77: -0.240070343 | J77: -0.2321357727
A78: 983.6957397 | B78: 103.7405319 | C78: 103.583519 | D78: 103.5271912 | E78: 103.5106735 | F78: 103.535881 | G78: -0.1570129395 | H78: -0.2133407593 | I78: -0.2298583984 | J78: -0.2046508789
A79: 1018.498352 | B79: 103.8317248 | C79: 103.6659164 | D79: 103.6270905 | E79: 103.5996094 | F79: 103.6284943 | G79: -0.1658083598 | H79: -0.2046343486 | I79: -0.2321154277 | J79: -0.20323054
A80: 1054.532227 | B80: 103.9188627 | C80: 103.7414398 | D80: 103.7161331 | E80: 103.6851349 | F80: 103.7060776 | G80: -0.1774228414 | H80: -0.202729543 | I80: -0.233727773 | J80: -0.212785085
A81: 1091.840942 | B81: 104.0163752 | C81: 103.8243408 | D81: 103.7978821 | E81: 103.7724152 | F81: 103.7772751 | G81: -0.1920344035 | H81: -0.2184931437 | I81: -0.2439600627 | J81: -0.2391001383
A82: 1130.469604 | B82: 104.1080755 | C82: 103.9157562 | D82: 103.8639145 | E82: 103.8534088 | F82: 103.8316956 | G82: -0.1923192342 | H82: -0.2441609701 | I82: -0.2546666463 | J82: -0.2763799032
A83: 1170.464966 | B83: 104.1915296 | C83: 104.0156174 | D83: 103.9291992 | E83: 103.9360733 | F83: 103.8829346 | G83: -0.1759122213 | H83: -0.2623303731 | I83: -0.2554562887 | J83: -0.3085950216
A84: 1211.933716 | B84: 104.270518 | C84: 104.1234894 | D84: 104.0204544 | E84: 104.0326157 | F84: 103.9621124 | G84: -0.1470286051 | H84: -0.2500635783 | I84: -0.2379023234 | J84: -0.3084055583
A85: 1254.811279 | B85: 104.3326874 | C85: 104.2083969 | D85: 104.1156693 | E85: 104.1167374 | F85: 104.0492706 | G85: -0.1242904663 | H85: -0.2170181274 | I85: -0.2159500122 | J85: -0.283416748
A86: 1299.205688 | B86: 104.3474859 | C86: 104.2425766 | D86: 104.1660767 | E86: 104.1498642 | F86: 104.0951157 | G86: -0.1049092611 | H86: -0.1814092 | I86: -0.1976216634 | J86: -0.2523701986
A87: 1345.170776 | B87: 104.2543666 | C87: 104.1889038 | D87: 104.1069641 | E87: 104.0894318 | F87: 104.014389 | G87: -0.06546274821 | H87: -0.1474024455 | I87: -0.1649347941 | J87: -0.2399775187
A88: 1392.762207 | B88: 104.0107752 | C88: 103.9946899 | D88: 103.914856 | E88: 103.9038849 | F88: 103.7761078 | G88: -0.0160853068 | H88: -0.09591929118 | I88: -0.1068903605 | J88: -0.2346674601
A89: 1442.037231 | B89: 103.7147268 | C89: 103.7331467 | D89: 103.6711197 | E89: 103.6533051 | F89: 103.492012 | G89: 0.01841990153 | H89: -0.04360707601 | I89: -0.06142171224 | J89: -0.222714742
A90: 1493.055664 | B90: 103.4918315 | C90: 103.5187378 | D90: 103.4830704 | E90: 103.4354324 | F90: 103.2879333 | G90: 0.02690633138 | H90: -0.008761088054 | I90: -0.05639902751 | J90: -0.203898112
A91: 1545.87915 | B91: 103.475427 | C91: 103.4895554 | D91: 103.4632874 | E91: 103.3729706 | F91: 103.2830963 | G91: 0.01412836711 | H91: -0.01213963826 | I91: -0.1024564107 | J91: -0.1923306783
A92: 1600.64856 | B92: 103.6683502 | C92: 103.6582031 | D92: 103.6299744 | E92: 103.5030823 | F92: 103.4682617 | G92: -0.01014709473 | H92: -0.03837585449 | I92: -0.1652679443 | J92: -0.200088501
A93: 1657.278564 | B93: 104.0198085 | C93: 103.9537048 | D93: 103.9351196 | E93: 103.7920609 | F93: 103.7801666 | G93: -0.06610361735 | H93: -0.08468882243 | I93: -0.2277475993 | J93: -0.2396418254
A94: 1715.912109 | B94: 104.4502831 | C94: 104.2590866 | D94: 104.2596588 | E94: 104.1560822 | F94: 104.133194 | G94: -0.1911964417 | H94: -0.1906242371 | I94: -0.2942008972 | J94: -0.3170890808
A95: 1776.620117 | B95: 104.8388176 | C95: 104.5052032 | D95: 104.5051117 | E95: 104.4819794 | F95: 104.4823456 | G95: -0.3336143494 | H95: -0.3337059021 | I95: -0.3568382263 | J95: -0.3564720154
A96: 1839.47583 | B96: 105.1283684 | C96: 104.7040939 | D96: 104.705574 | E96: 104.7029037 | F96: 104.8117294 | G96: -0.4242744446 | H96: -0.422794342 | I96: -0.4254646301 | J96: -0.3166389465
A97: 1904.55542 | B97: 105.3002993 | C97: 104.9115219 | D97: 104.9385452 | E97: 104.8627319 | F97: 105.1125946 | G97: -0.388777415 | H97: -0.3617540995 | I97: -0.437567393 | J97: -0.1877047221
A98: 1971.937378 | B98: 105.3567429 | C98: 105.1213531 | D98: 105.2016754 | E98: 105.02388 | F98: 105.3047409 | G98: -0.2353897095 | H98: -0.1550674438 | I98: -0.332862854 | J98: -0.05200195312
A99: 2041.703369 | B99: 105.2754822 | C99: 105.2012177 | D99: 105.2767181 | E99: 105.0676422 | F99: 105.2835846 | G99: -0.07426452637 | H99: 0.001235961914 | I99: -0.2078399658 | J99: 0.008102416993
A100: 2113.937744 | B100: 105.0244738 | C100: 105.0354385 | D100: 105.051445 | E100: 104.9414902 | F100: 105.0181351 | G100: 0.01096471151 | H100: 0.02697118123 | I100: -0.08298365275 | J100: -0.00633875529
A101: 2188.833008 | B101: 104.7232602 | C101: 104.734787 | D101: 104.6490021 | E101: 104.6489105 | F101: 104.6662827 | G101: 0.01152674357 | H101: -0.07425816854 | I101: -0.07434972127 | J101: -0.05697758992
A102: 2266.272705 | B102: 104.6114642 | C102: 104.5713043 | D102: 104.4479752 | E102: 104.5198364 | F102: 104.5012894 | G102: -0.04015986125 | H102: -0.1634890238 | I102: -0.09162775676 | J102: -0.1101748149
A103: 2346.452148 | B103: 104.862601 | C103: 104.7735748 | D103: 104.6659927 | E103: 104.7293854 | F103: 104.7021713 | G103: -0.08902613322 | H103: -0.1966082255 | I103: -0.1332155863 | J103: -0.1604296366
A104: 2429.468018 | B104: 105.3761775 | C104: 105.2401123 | D104: 105.1698914 | E104: 105.1898346 | F104: 105.1789703 | G104: -0.1360651652 | H104: -0.2062861125 | I104: -0.1863428752 | J104: -0.197207133
A105: 2515.421143 | B105: 105.8218625 | C105: 105.6499481 | D105: 105.604866 | E105: 105.581543 | F105: 105.609375 | G105: -0.1719144185 | H105: -0.2169965108 | I105: -0.2403195699 | J105: -0.2124875387
A106: 2604.415283 | B106: 105.8979607 | C106: 105.7109375 | D106: 105.6627426 | E106: 105.6112595 | F106: 105.6968842 | G106: -0.1870231628 | H106: -0.2352180481 | I106: -0.2867012024 | J106: -0.2010765076
A107: 2696.558105 | B107: 105.5856311 | C107: 105.4064941 | D107: 105.3491592 | E107: 105.2785645 | F107: 105.409256 | G107: -0.179136912 | H107: -0.2364718119 | I107: -0.3070665995 | J107: -0.1763750712
A108: 2791.960693 | B108: 105.1342405 | C108: 104.9991074 | D108: 104.9240341 | E108: 104.858139 | F108: 104.9797287 | G108: -0.1351331075 | H108: -0.2102063497 | I108: -0.2761014303 | J108: -0.1545117696
A109: 2890.87793 | B109: 104.7811228 | C109: 104.7020798 | D109: 104.6070862 | E109: 104.5764465 | F109: 104.6489029 | G109: -0.07904307048 | H109: -0.1740366618 | I109: -0.2046763102 | J109: -0.1322199504
A110: 2993.155518 | B110: 104.505853 | C110: 104.4892731 | D110: 104.3683624 | E110: 104.3870087 | F110: 104.3989258 | G110: -0.01657994588 | H110: -0.1374905904 | I110: -0.1188443502 | J110: -0.1069272359
A111: 3099.051514 | B111: 104.0041237 | C111: 104.0245972 | D111: 103.8885803 | E111: 103.942276 | F111: 103.9256744 | G111: 0.02047348022 | H111: -0.1155433655 | I111: -0.06184768677 | J111: -0.07844924927
A112: 3208.694092 | B112: 103.0338122 | C112: 103.0760727 | D112: 102.9316559 | E112: 102.9937515 | F112: 102.9793472 | G112: 0.04226048787 | H112: -0.1021563212 | I112: -0.04006067912 | J112: -0.05446497599
A113: 3322.21582 | B113: 101.4837545 | C113: 101.5663528 | D113: 101.425621 | E113: 101.4612656 | F113: 101.459343 | G113: 0.08259836833 | H113: -0.0581334432 | I113: -0.02248891195 | J113: -0.02441151937
A114: 3439.753906 | B114: 99.50152461 | C114: 99.65960693 | D114: 99.56221771 | E114: 99.52648163 | F114: 99.53475189 | G114: 0.1580823263 | H114: 0.06069310506 | I114: 0.02495702108 | J114: 0.03322728475
A115: 3561.450439 | B115: 98.03113302 | C115: 98.23718262 | D115: 98.2038269 | E115: 98.10004425 | F115: 98.11631012 | G115: 0.2060496012 | H115: 0.1726938883 | I115: 0.06891123454 | J115: 0.08517710368
A116: 3687.452393 | B116: 97.69365056 | C116: 97.91574097 | D116: 97.92793274 | E116: 97.78798676 | F116: 97.8323822 | G116: 0.2220904032 | H116: 0.2342821757 | I116: 0.09433619181 | J116: 0.1387316386
A117: 3817.912109 | B117: 98.15394847 | C117: 98.3839035 | D117: 98.39567566 | E117: 98.27183533 | F117: 98.34619141 | G117: 0.2299550374 | H117: 0.2417271932 | I117: 0.1178868612 | J117: 0.1922429403
A118: 3953.178223 | B118: 98.48040644 | C118: 98.79859924 | D118: 98.74524689 | E118: 98.66293335 | F118: 98.75919342 | G118: 0.3181927999 | H118: 0.2648404439 | I118: 0.1825269063 | J118: 0.2787869771
A119: 4093.039307 | B119: 98.01993942 | C119: 98.48040009 | D119: 98.37635803 | E119: 98.34638977 | F119: 98.41993713 | G119: 0.4604606628 | H119: 0.3564186096 | I119: 0.3264503479 | J119: 0.3999977112
A120: 4237.848633 | B120: 97.04952367 | C120: 97.65991211 | D120: 97.56557465 | E120: 97.56587982 | F120: 97.55461884 | G120: 0.6103884379 | H120: 0.5160509745 | I120: 0.5163561503 | J120: 0.505095164
A121: 4387.78125 | B121: 96.07603709 | C121: 96.7951889 | D121: 96.76620483 | E121: 96.72187805 | F121: 96.63766479 | G121: 0.7191518148 | H121: 0.690167745 | I121: 0.6458409627 | J121: 0.5616277059
A122: 4543.018555 | B122: 95.47027334 | C122: 96.21387482 | D122: 96.25358582 | E122: 96.12905884 | F122: 96.02386475 | G122: 0.7436014811 | H122: 0.7833124797 | I122: 0.6587855021 | J122: 0.5535914103
A123: 4703.747559 | B123: 95.54231262 | C123: 96.13344574 | D123: 96.20010376 | E123: 96.02763367 | F123: 95.97401428 | G123: 0.5911331177 | H123: 0.6577911377 | I123: 0.4853210449 | J123: 0.4317016602
A124: 4870.163574 | B124: 96.3275795 | C124: 96.68244934 | D124: 96.67398834 | E124: 96.52580261 | F124: 96.62338257 | G124: 0.3548698425 | H124: 0.346408844 | I124: 0.198223114 | J124: 0.2958030701
A125: 5042.466797 | B125: 97.09501139 | C125: 97.18592072 | D125: 97.05149841 | E125: 96.9681778 | F125: 97.25832367 | G125: 0.0909093221 | H125: -0.04351298014 | I125: -0.1268335978 | J125: 0.1633122762
A126: 5221.118164 | B126: 97.54501851 | C126: 97.34238434 | D126: 97.12349701 | E126: 97.09830475 | F126: 97.5088501 | G126: -0.2026341756 | H126: -0.4215215047 | I126: -0.4467137655 | J126: -0.03616841634
A127: 5405.838379 | B127: 97.71786245 | C127: 97.13670349 | D127: 96.91291809 | E127: 96.98625946 | F127: 97.32875824 | G127: -0.5811589559 | H127: -0.8049443563 | I127: -0.7316029867 | J127: -0.3891042074
A128: 5597.09375 | B128: 97.97062937 | C128: 96.88825989 | D128: 96.75973511 | E128: 96.97898865 | F128: 97.07106781 | G128: -1.082369486 | H128: -1.210894267 | I128: -0.9916407267 | J128: -0.8995615641
A129: 5795.115234 | B129: 98.45571264 | C129: 97.07945251 | D129: 96.91400146 | E129: 97.37026978 | F129: 97.23062897 | G129: -1.376260122 | H129: -1.541711171 | I129: -1.085442861 | J129: -1.225083669
